Cogmind - Beta 15 @@@ ROGUE MODE // 2025.05.19 @ 20:37:31 Player: DuckBoy Result: Self-destructed Performance ------------- Evolutions (2) 1000 Regions Visited (3) 600 Robots Destroyed (47) 235 Value Destroyed (1332) 1332 Prototype IDs (2) 40 Alien Tech Used (0) 0 Bonus (0) 0 TOTAL SCORE: 3207 Bonus ------- None Cogmind --------- Core Integrity 550/550 Matter 239/300 Energy 100/100 System Corruption 0% Temperature Cool (0) Movement Rolling (210) Ox10 Location -8/Materials Parts ------- > --- POWER (1) -------- Subdweller Power Source > --- PROPULSION (4) --- Light Treads Subdweller Monowheel > --- UTILITY (4) ------ Humpback > --- WEAPON (2) ------- Subdweller Laser Subdweller Beam Cannon > --- INVENTORY (35) --- Ion Engine Ion Engine Light Nuclear Core Light Treads Light Treads Light Treads Light Treads Light Treads Light Treads Wheel Compact Wheel Subdweller Monowheel Subdweller Monowheel Medium Storage Unit High-capacity Storage Unit Subdweller Optics Sensor Array Scrap Shield Scrap Shield Makeshift System Restoration Module Riot Gun Subdweller Machine Gun Subdweller Machine Gun Light Cannon Grenade Launcher Subdweller Shrapnel Launcher Datajack Multitool Flamer Flamer Ripper Peak State ------------ > --- POWER ------------ Subdweller Power Source > --- PROPULSION ------- Light Treads Subdweller Monowheel > --- UTILITY ---------- Humpback > --- WEAPON ----------- Subdweller Laser Subdweller Machine Gun > --- INVENTORY -------- Ion Engine Ion Engine Light Nuclear Core Light Treads Light Treads Light Treads Light Treads Light Treads Light Treads Spiked Treads Wheel Compact Wheel Subdweller Monowheel Heat Sink Medium Storage Unit High-capacity Storage Unit Subdweller Optics Sensor Array Scrap Shield Scrap Shield Makeshift System Restoration Module EM Pulse Gun Light Cannon Light Cannon Subdweller Shrapnel Launcher Datajack Multitool Flamer Ripper Scrap Shield Fragment [Rating: 16] Favorites ----------- Power Subdweller Power Source Engine Subdweller Power Source Power Core Light Nuclear Core Propulsion Light Treads Treads Light Treads Wheel Subdweller Monowheel Utility Humpback Device Improved Heat Sink Storage Humpback Protection Scrap Shield Weapon Subdweller Beam Cannon Energy Gun Small Laser Energy Cannon Subdweller Beam Cannon Ballistic Gun Subdweller Machine Gun Ballistic Cannon Light Cannon Launcher Subdweller Shrapnel Launcher Special Weapon Multitool Special Melee Weapon Datajack Build | -11 -10 -10 -8 ------- Run | Yrd Mat Sub Mat Slots Evolved 4 | . . . 4 Power . | . . . . Propulsion 2 | . . . 2 Utility 2 | . . . 2 Weapon . | . . . . Parts Attached 42 | 6 10 26 . Power 7 | 1 1 5 . Engine 6 | 1 1 4 . Core 1 | . . 1 . Reactor . | . . . . Propulsion 10 | 2 1 7 . Treads 6 | 1 1 4 . Leg . | . . . . Wheel 4 | 1 . 3 . Hover . | . . . . Flight . | . . . . Utility 7 | 1 2 4 . Device 2 | . 1 1 . Storage 3 | 1 1 1 . Processor . | . . . . Hackware . | . . . . Protection 2 | . . 2 . Artifact . | . . . . Weapon 18 | 2 6 10 . Energy Gun 4 | 2 1 1 . Energy Cannon 3 | . . 3 . Ballistic Gun 3 | . . 3 . Ballistic Cannon 4 | . 3 1 . Launcher 1 | . . 1 . Special Weapon 2 | . 1 1 . Impact Weapon . | . . . . Slashing Weapon . | . . . . Piercing Weapon . | . . . . Special Melee Weapon 1 | . 1 . . Unidentified Prototypes . | . . . . Parts Lost 8 | . . 8 . Power . | . . . . Propulsion 4 | . . 4 . Utility 1 | . . 1 . Weapon 3 | . . 3 . Highest Loss Streak 4 | . . 4 . To Critical Strikes 1 | . . 1 . Average Backups 26 | 2 15 28 . Power 3 | . 3 3 . Propulsion 10 | 1 6 10 . Utility 6 | . 2 7 . Weapon 4 | . 3 5 . Tool/Special . | . . . . Unused Backups 28 | . 6 2 20 Power 4 | . 2 . 2 Propulsion 9 | . 2 . 7 Utility 7 | . 1 2 4 Weapon 7 | . 1 . 6 Tool/Special 1 | . . . 1 Average Slot Usage (%) 86 | . 98 84 . Engine 11 | . 14 11 . Treads 24 | . 26 24 . Wheel 2 | . . 3 . Device 2 | . 13 1 . Storage 13 | . 14 13 . Energy Gun 3 | . 11 1 . Energy Cannon 10 | . . 12 . Ballistic Gun 8 | . . 10 . Ballistic Cannon 4 | . 15 2 . Special Weapon 1 | . . 1 . Peak Build Rating 16 | 6 11 16 . Average Rating 13 | 4 10 14 . On Entrance 8 | . 6 11 16 Naked Turns . | . . . . Heaviest Build 221 | 12 52 221 . Greatest Support 40 | 20 40 40 . Greatest Overweight (x) 10 | . 3 10 . Average Overweight (x) 4 | . . 5 . Largest Inventory Capacity 35 | 8 20 35 . Average Capacity 30 | 7 17 32 . Most Carried 35 | 5 20 35 . Average Carried 28 | 2 15 30 . Final Capacity 35 | 8 20 35 35 Final Carried 33 | 5 20 33 33 Class Distribution -------------------- 71% | Hauler-Mutant 27% | Mutant Dominant Class ---------------- Mutant | -10/Materials Hauler-Mutant | -10/Subcaves Hauler-Mutant | -8/Materials Resources | -11 -10 -10 -8 ----------- Run | Yrd Mat Sub Mat Matter Collected 1442 | 256 382 804 . Remotely . | . . . . Salvage Created 1350 | . 600 750 . Parts 103 | . 49 54 . Haulers Intercepted 2 | . 2 . . Recyclers Shooed . | . . . . Parts Field Recycled . | . . . . Retrieved Matter . | . . . . Parts Self-Destructed 19 | . . 19 . Prevented . | . . . . Kills | -11 -10 -10 -8 ------- Run | Yrd Mat Sub Mat Combat Hostiles Destroyed 38 | . 13 25 . Guns 11 | . 7 4 . Cannons 24 | . 6 18 . AOE 2 | . . 2 . Classes Destroyed 10 | . 7 3 . Builder 2 | . 2 . . Hauler 2 | . 2 . . Recycler 1 | . 1 . . Operator 1 | . 1 . . Watcher 3 | . 3 . . Swarmer 9 | . 5 4 . Grunt 8 | . 8 . . Artisan 1 | . . 1 . Cobbler 1 | . . 1 . Subdweller 21 | . . 21 . Best Kill Streak 8 | . 8 4 . Combat Bots Only 7 | . 7 4 . Max Kills in Single Turn 2 | . 2 1 . Gunslinging . | . . . . Exploded 1 | . . 1 . Melee . | . . . . Uniques/NPCs Destroyed . | . . . . Combat | -11 -10 -10 -8 -------- Run | Yrd Mat Sub Mat Hostile Shots Fired 176 | . 55 121 . Missed 55 | . 19 36 . Hits 121 | . 36 85 . Projectile 121 | . 36 85 . AOE 2 | . . 2 . Critical Strikes 5 | . 1 4 . Damage Taken 2161 | . 413 1748 . Core 206 | . 30 176 . Absorbed by Shields . | . . . . Regen/Repaired (Parts) 154 | . 154 . . Core Remaining (%) 58 | 100 . 17 . Volleys Fired 231 | . 43 188 . Largest 2 | . 2 2 . Hottest 160 | . 100 160 . Shots Fired 340 | . 80 260 . Gun 95 | . 36 59 . Cannon 232 | . 42 190 . Launcher 5 | . . 5 . Special 8 | . 2 6 . Kinetic 142 | . 42 100 . Thermal 192 | . 34 158 . Explosive . | . . . . Electromagnetic 6 | . 4 2 . Robot Hit Streak 20 | . 13 20 . Robot Miss Streak 3 | . 3 2 . Penetration Max . | . . . . Secondary Targets 1 | . 1 . . Max Gunslinging Chain 1 | . 1 . . Shots Hit Robots 192 | . 55 137 . Core Hits 65 | . 27 38 . Critical Kills 1 | . . 1 . Critical Parts Destroyed . | . . . . Critical Strikes 9 | . 4 5 . Meltdown 1 | . . 1 . Destroy 3 | . . 3 . Blast 5 | . 4 1 . Melee Attacks 2 | . 1 1 . Impact . | . . . . Slashing . | . . . . Piercing . | . . . . Sneak Attacks 2 | . 1 1 . Combat Hostiles . | . . . . Follow-up Attacks . | . . . . Damage Inflicted 3828 | . 862 2966 . Guns 1123 | . 299 824 . Cannons 2186 | . 525 1661 . Explosions 496 | . 37 459 . Melee . | . . . . Ramming 1 | . 1 . . Kinetic 2279 | . 525 1754 . Thermal 1477 | . 293 1184 . Explosive . | . . . . Electromagnetic 71 | . 43 28 . Impact . | . . . . Slashing . | . . . . Piercing . | . . . . Highest Corruption . | . . . . Average Corruption . | . . . . Corruption Purged . | . . . . Corruption Blocked . | . . . . Overload Shots . | . . . . Overflow Damage . | . . . . Projectiles . | . . . . Explosions . | . . . . Melee . | . . . . Knockbacks 16 | . 4 12 . Impact . | . . . . Kinetic 16 | . 4 12 . Secondary . | . . . . Self-Inflicted Damage 13 | . . 13 . Shots 1 | . . 1 . Rammed . | . . . . Targets Rammed 1 | . 1 . . Kicked . | . . . . Crushed 1 | . 1 . . Highest Temperature 126 | . 126 51 . Average Temperature 43 | . 67 15 . Received Heat Transfer 336 | . 180 156 . Siege Activations . | . . . . Martial Activations . | . . . . Shielding Activations . | . . . . Robots Disrupted . | . . . . Combat Hostiles . | . . . . Robots Corrupted . | . . . . Combat Hostiles . | . . . . Parts Fried . | . . . . Impact Corruptions . | . . . . Robots Melted 1 | . . 1 . Combat Hostiles 1 | . . 1 . Parts Melted 1 | . . 1 . Heat Transferred 2246 | . 625 1621 . Parts Sabotaged . | . . . . Parts Stolen . | . . . . Parts Stripped . | . . . . Power Chain Reactions 1 | . 1 . . Alert | -11 -10 -10 -8 ------- Run | Yrd Mat Sub Mat Maximum Alert Level . | . . . . Low Security (%) 100 | 100 100 . . Level 1 . | . . . . Level 2 . | . . . . Level 3 . | . . . . Level 4 . | . . . . Level 5 . | . . . . High Security . | . . . . Max Security . | . . . . Peak Influence 165 | . 165 . . Initial . | . . . . Average 48 | . 49 . . Influence Increases 638 | . 528 110 . Destroy 0b10 Robot/C 340 | . 260 80 . Destroy 0b10 Robot/NC 45 | . 45 . . Destroy Leader 80 | . 80 . . Successful Hack 36 | . 36 . . Select Force Hacks 60 | . 60 . . Disable Machine 30 | . 30 . . Destroy Structure 2 | . 2 . . Lose Combat Pursuer 45 | . 15 30 . Influence Decreases 638 | . 528 110 . Time Decay 614 | . 528 86 . Lost Part 24 | . . 24 . Squads Dispatched 3 | . 3 . . Investigation 2 | . 2 . . Extermination . | . . . . Reinforcement 1 | . 1 . . Assault . | . . . . Garrison . | . . . . Intercept . | . . . . Searches Triggered . | . . . . Construction Impeded . | . . . . Haulers Reinforced . | . . . . Active Scanning Responses . | . . . . Cargo Convoy Interrupts . | . . . . Stealth | -11 -10 -10 -8 --------- Run | Yrd Mat Sub Mat Distress Signals 2 | . 2 . . Communications Jammed . | . . . . Distress Signals . | . . . . Times Spotted 45 | . 19 26 . Peak Tracking Total 7 | . 7 4 . Tactical Retreats 2 | . 1 1 . Traps | -11 -10 -10 -8 ------- Run | Yrd Mat Sub Mat Traps Triggered 4 | . 3 1 . Indirectly . | . . . . Trap Hack Attempts 17 | . 17 . . Triggered . | . . . . Disarmed 4 | . 4 . . Reprogrammed . | . . . . Reused . | . . . . Traps Extracted . | . . . . Installed . | . . . . Triggered . | . . . . Machines | -11 -10 -10 -8 ---------- Run | Yrd Mat Sub Mat Machines Disabled 2 | . 2 . . Max in Single Turn 1 | . 1 . . Machines Repaired . | . . . . Machines Dismantled . | . . . . Machines Sabotaged . | . . . . Overloaded Fab Kills . | . . . . Hacking | -11 -10 -10 -8 --------- Run | Yrd Mat Sub Mat Machines Accessed 11 | . 10 1 . Terminals 7 | . 7 . . Fabricators . | . . . . Repair Stations 1 | . 1 . . Recycling Units 2 | . 2 . . Scanalyzers . | . . . . Garrison Access . | . . . . Total Hacks 34 | . 29 5 . Successful 21 | . 16 5 . Failed 12 | . 12 . . Catastrophic 1 | . 1 . . Database Lockouts 1 | . 1 . . Manual 10 | . 10 . . Terminals 19 | . 19 . . Fabricators . | . . . . Repair Stations 6 | . 6 . . Recycling Units 4 | . 4 . . Scanalyzers . | . . . . Garrison Access . | . . . . Terminal Hacks 13 | . 8 5 . Record 5 | . . 5 . Robot Schematic 1 | . 1 . . Prototype ID Bank 1 | . 1 . . Locate Traps 1 | . 1 . . Dispatch Records 1 | . 1 . . Transport Status 1 | . 1 . . Hauler Manifests 2 | . 2 . . Zone Layout 1 | . 1 . . Fabricator Hacks . | . . . . Repair Station Hacks 4 | . 4 . . Scan Component 2 | . 2 . . Repair 2 | . 2 . . Recycling Unit Hacks . | . . . . Scanalyzer . | . . . . Garrison Access Hacks . | . . . . Unauthorized Hacks 4 | . 4 . . Terminals 2 | . 2 . . Botnet 1 | . 1 . . Operators 1 | . 1 . . Fabricators . | . . . . Repair Stations . | . . . . Recycling Units 2 | . 2 . . Tunnel 2 | . 2 . . Scanalyzers . | . . . . Garrison Access . | . . . . Data Cores Recovered . | . . . . Used . | . . . . Hacking Detections 8 | . 8 . . Full Trace Events . | . . . . Feedback Events . | . . . . Feedback Blocked . | . . . . Robot Schematics Acquired 1 | . 1 . . Robots Built . | . . . . Authchips . | . . . . Time . | . . . . Total Robot Build Rating . | . . . . Part Schematics Acquired . | . . . . Parts Built . | . . . . Authchips . | . . . . Time . | . . . . Total Part Build Rating . | . . . . Parts Repaired 2 | . 2 . . Time 52 | . 52 . . Parts Recycled . | . . . . Recycled Matter . | . . . . Retrieved Matter . | . . . . Retrieved Components . | . . . . Parts Scanalyzed . | . . . . Part Schematics Acquired . | . . . . Parts Damaged . | . . . . Bothacking | -11 -10 -10 -8 ------------ Run | Yrd Mat Sub Mat Used RIF Installer . | . . . . Robots Hacked 2 | . 1 1 . Non-combat 2 | . 1 1 . Combat . | . . . . Robot Hacks Applied 2 | . 1 1 . parse_system 1 | . . 1 . check_alert 1 | . 1 . . Relay Couplers Released . | . . . . Fabnet Peak Effective % . | . . . . Robots Rewired . | . . . . Allies Hacked . | . . . . Hacks Repelled . | . . . . Allies | -11 -10 -10 -8 -------- Run | Yrd Mat Sub Mat Total Allies . | . . . . Largest Group . | . . . . Highest-Rated Group . | . . . . Highest-Rated Ally . | . . . . Total Orders . | . . . . Ally Attacks . | . . . . Total Damage . | . . . . Kills . | . . . . Allies Corrupted . | . . . . Allies Melted . | . . . . Intel | -11 -10 -10 -8 ------- Run | Yrd Mat Sub Mat Active Infowar (turns) 390 | . . 390 . Optics 390 | . . 390 . Robot Analysis Total . | . . . . Derelict Logs Recovered 2 | . . 2 . Drone Launches . | . . . . Drone Recoveries . | . . . . Exploration | -11 -10 -10 -8 ------------- Run | Yrd Mat Sub Mat Turns Passed 13019 | 58 2042 10919 . Spaces Moved 3583 | 37 799 2747 . Core 2 | 1 1 . . Treads 2480 | 3 740 1737 . Legs . | . . . . Wheels 1101 | 33 58 1010 . Hover . | . . . . Flight . | . . . . Fastest Speed 50 | 50 100 90 . Average Speed 334 | 103 216 371 . Slowest Speed 610 | 160 240 610 . Overloaded Moves . | . . . . Propulsion Burnouts . | . . . . Robots Hopped . | . . . . Potential Cave-ins . | . . . . Cave-ins Triggered . | . . . . Exploration Rate (%) 49 | 3 98 94 1 Regions Visited 3 Branch Regions 1 Pre-discovered Areas 4 | . 2 2 . Known Exits Taken . | . . . . Unknown Exits Taken 3 | 1 1 1 . Scrap Searched 7 | . . 7 . Spaces Dug 32 | . 1 31 . Terrain Destroyed 93 | . 2 91 . Melee . | . . . . Projectile 59 | . 2 57 . AOE 34 | . . 34 . Terrain Rammed . | . . . . Walls Destroyed . | . . . . Machines Disabled . | . . . . Actions | -11 -10 -10 -8 --------- Run | Yrd Mat Sub Mat Total 4263 | 53 1023 3187 . Wait 226 | 6 106 114 . Move 3580 | 36 798 2746 . Hop . | . . . . Pick Up 99 | 5 25 69 . Fast Attach 21 | 6 7 8 . Attach 13 | . 2 11 . Detach . | . . . . Swap 37 | . 13 24 . Drop 31 | . 10 21 . Fire 231 | . 43 188 . Melee 2 | . 1 1 . Ram . | . . . . Kick . | . . . . Crush 1 | . 1 . . Escape Stasis . | . . . . Rewire . | . . . . Trap 17 | . 17 . . Miscellaneous 5 | . . 5 . Route ------- -11/Scrapyard -10/Materials (discovered 6 exits: [*Mat x3] / [*Min x2] / *Sub) -10/Subcaves (discovered 2 exits: [*Mat x2]) -8/Materials History --------- Turn | Location | Event 26 | -11/Scrapyard | Discovered new exit (range 14) 59 | -11/Scrapyard | Entered Materials 174 | -10/Materials | Destroyed 7 combat bots 313 | -10/Materials | Build established: Mutant 365 | -10/Materials | Discovered new exit (range 9) 506 | -10/Materials | Discovered new exit (range 16) 890 | -10/Materials | Discovered new exit (range 7) 944 | -10/Materials | Repaired Lgt. Treads 972 | -10/Materials | Repaired Lgt. Treads 1222 | -10/Materials | Discovered new exit (range 8) 1265 | -10/Materials | Discovered new exit (range 3) 1539 | -10/Materials | Central database locked down 2079 | -10/Materials | Discovered new exit (range 10) 2101 | -10/Materials | Entered Subcaves 2102 | -10/Subcaves | Approached by a straggling Scientist 2334 | -10/Subcaves | Learned location of Recycling (-9) 2552 | -10/Subcaves | Lost 4 parts (2n1u1w) 2833 | -10/Subcaves | Shifting Twisted Machinery released Flamer 2850 | -10/Subcaves | Shifting Twisted Machinery released Sub. Beam Cannon 2927 | -10/Subcaves | Discovered new exit (range 7) 3161 | -10/Subcaves | Shifting Twisted Machinery released Mak. System Restoration Module 3847 | -10/Subcaves | Build established: Hauler-Mutant 4843 | -10/Subcaves | Core integrity fell below 50% 5249 | -10/Subcaves | Visited Clippyterm 5266 | -10/Subcaves | Learned Factory trap positions 5266 | -10/Subcaves | Learned Factory emergency access door positions 5524 | -10/Subcaves | A swath of the cavern ceiling suddenly collapsed 5985 | -10/Subcaves | Learned Materials stockpile data 6304 | -10/Subcaves | Shifting Twisted Machinery released Sub. Monowheel 6311 | -10/Subcaves | Shifting Twisted Machinery released Mak. Spear 9828 | -10/Subcaves | Learned location of Zion (-6) 9828 | -10/Subcaves | Met a Zionite searching for "candidates" 9847 | -10/Subcaves | Discovered new exit (range 16) 10435 | -10/Subcaves | Curiously followed by a Cobbler waking with a query about "LVR3C" 11923 | -10/Subcaves | Core integrity fell below 20% 13020 | -10/Subcaves | Entered Materials 13020 | -8/Materials | Evolved 4 slots: Propulsion x2, Utility x2 13020 | -8/Materials | Self-destructed Last Messages --------------- 12960_ Subatomizers dissect the Multitool. 12963_ Acquired Multitool. 12966_ Acquired Hcp. Storage Unit. 12968_ XO-VT5(u) tweaks Twisted Machinery. 12969_ Acquired Lgt. Treads. 12972_ Acquired Sensor Array. 12975_ Acquired Scrap Shield. 12978_ Acquired Flamer. 12981_ Acquired Med. Storage Unit. 12983_ Subatomizers dissect the Heat Sink. 12984_ Acquired Sub. Machine Gun. 12987_ Acquired Sub. Shrapnel Launcher. 12989_ XO-VT5(u) tweaks Twisted Machinery. 12990_ Acquired Sub. Optics. 12994_ Acquired Flamer. 12994_ XO-VT5(u) tweaks Twisted Machinery. 13015_ Subatomizers dissect the Heat Sink. PARAMETERS=PROPULSION+2,UTILITY+2 LOCATION=UNKNOWN GOAL=ESCAPE Map ----- +----------------------------------------------------+ | ????????????????????????????????????? | | ????????????????????????????????????? | | ????????????????????????????????????? | | ????????????????????????????????????? | | ????????????????????????????????????? | | ????????????????????????????????????? | | ????????????????????????????????????? | | ????????????????????????????????????? | | ????????????????????????????????????? | | ????????????????????????????????????? | | ????????????????????????????????????? | | ????????????????????????????????????? | | ????????????????????????????????????? | | ????????????????????????????????????? | | ????????????????????""??????????????? | | ???????????????????? ???????????????? | | ??????????????????? ???????????????? | | ?????????????????? ""???????????????? | | ????????????????? """ #??????????? | | ????????????????? """ #??????????? | | ???????????????? #??????????? | | ??????????????? #??????????? | | ?????????????? #??????????? | | ??????????#### #??????????? | | ??????????# [[[ #??????????? | | ??????????# @ [[ #??????????? | | ??????????# [[ #??????????? | | ??????????######+########???????????? | | ????????????????????????????????????? | | ????????????????????????????????????? | | ????????????????????????????????????? | | ????????????????????????????????????? | | ????????????????????????????????????? | | ????????????????????????????????????? | | ????????????????????????????????????? | | ????????????????????????????????????? | | ????????????????????????????????????? | | ????????????????????????????????????? | | ????????????????????????????????????? | | ????????????????????????????????????? | | ????????????????????????????????????? | | ????????????????????????????????????? | | ????????????????????????????????????? | | ????????????????????????????????????? | | ????????????????????????????????????? | | ????????????????????????????????????? | | ????????????????????????????????????? | | ????????????????????????????????????? | | ????????????????????????????????????? | | ????????????????????????????????????? | +----------------------------------------------------+ Best States ------------- Heat Dissipation 39 Energy Generation 15 Energy Capacity 250 Matter Stores 300 Matter Capacity 300 Sight Range 21 Terrain Scan Density 10 Armor Coverage 800 Evasion (%) 40 Recoil Reduction 2 Item Schematics ----------------- None Robot Schematics ------------------ M-13 Machinist | -10/Materials | Hacked Fabricated ------------ Nothing Repaired ---------- Lgt. Treads | 32% | -10/Materials Lgt. Treads | 57% | -10/Materials Alien Tech Used ----------------- None Achievements -------------- None Challenges ------------ None Game ------ Seed ThunderWardroneFalx Manual? 0 Play Time 00:41:55 Cumulative 500.0 hours Start 2025.05.19 @ 19:53:59 End 2025.05.19 @ 20:37:31 Sessions 1 Manual Loads 0 Difficulty Rogue Special Mode None Game No. 315 Rogue 312 Adventurer 3 Explorer 0 Win Type - Total 8 Types 7/0/1/0/0/0/0/0/0/0 Lore% 74 Gallery% 71 Achievement% 68 Wizard Run 0 Options --------- Layout 0 ASCII 0 Keyboard 0 Movement Numpad Keybinds 0 Fullscreen 1 Font 18/SmallcapsGlow Map View 76x50 Zoom Use 0% Tactical HUD 1 Map Filters NONE Filters NONE Steam 1 RUN: 9d52cd87-0921-41a1-9f1e-5da734fd39de